[Event "*** Titled Tuesday Blitz"]
[Site "Chess.com"]
[Date "2020.10.20"]
[Round "2"]
[White "KaterynaLagno"]
[Black "aloe_normansen"]
[Result "1-0"]
[WhiteElo "2681"]
[BlackElo "2337"]
[TimeControl "180+1"]
[EndTime "10:17:51 PDT"]
[Termination "KaterynaLagno won by resignation"]

1. e4 {[%clk 0:03:00.9]} 1... c5 {[%clk 0:02:59.9]} 2. Nf3 {[%clk 0:03:00.6]}
2... d6 {[%clk 0:03:00.2]} 3. Bb5+ {[%clk 0:02:59.4]} 3... Nc6 {[%clk
0:02:59.8]} 4. O-O {[%clk 0:02:58.2]} 4... Bd7 {[%clk 0:02:58.2]} 5. Re1 {[%clk
0:02:58]} 5... Nf6 {[%clk 0:02:56.5]} 6. c3 {[%clk 0:02:57]} 6... a6 {[%clk
0:02:54.1]} 7. Bf1 {[%clk 0:02:55]} 7... Bg4 {[%clk 0:02:52.9]} 8. h3 {[%clk
0:02:55]} 8... Bxf3 {[%clk 0:02:49.4]} 9. Qxf3 {[%clk 0:02:55.9]} 9... g6 {[%clk
0:02:46.9]} 10. d3 {[%clk 0:02:54.9]} 10... Bg7 {[%clk 0:02:46.6]} 11. Be3
{[%clk 0:02:55]} 11... Nd7 {[%clk 0:02:45.1]} 12. Qd1 {[%clk 0:02:52.2]} 12...
O-O {[%clk 0:02:17.3]} 13. Nd2 {[%clk 0:02:51.6]} 13... b5 {[%clk 0:02:15.8]}
14. Nf3 {[%clk 0:02:49.7]} 14... Rc8 {[%clk 0:02:13.7]} 15. Qd2 {[%clk
0:02:45.6]} 15... b4 {[%clk 0:02:10.5]} 16. d4 {[%clk 0:02:45]} 16... bxc3
{[%clk 0:02:05.8]} 17. bxc3 {[%clk 0:02:45.9]} 17... Qa5 {[%clk 0:02:05.9]} 18.
Red1 {[%clk 0:02:32.9]} 18... Nb6 {[%clk 0:01:54.6]} 19. a4 {[%clk 0:02:23.5]}
19... cxd4 {[%clk 0:01:47.3]} 20. cxd4 {[%clk 0:02:23]} 20... Qxd2 {[%clk
0:01:36.1]} 21. Rxd2 {[%clk 0:02:23.9]} 21... Na5 {[%clk 0:01:35.8]} 22. Rdd1
{[%clk 0:02:08.4]} 22... Nbc4 {[%clk 0:01:29]} 23. Bg5 {[%clk 0:02:03.1]} 23...
Rfe8 {[%clk 0:01:27.4]} 24. Rab1 {[%clk 0:02:02]} 24... h6 {[%clk 0:01:26]} 25.
Bh4 {[%clk 0:02:00.8]} 25... g5 {[%clk 0:01:15.5]} 26. Bg3 {[%clk 0:02:00.7]}
26... Rb8 {[%clk 0:01:14.7]} 27. e5 {[%clk 0:01:56]} 27... d5 {[%clk 0:00:53.2]}
28. e6 {[%clk 0:01:50.8]} 28... Rxb1 {[%clk 0:00:51.2]} 29. exf7+ {[%clk
0:01:51]} 29... Kxf7 {[%clk 0:00:52.1]} 30. Rxb1 {[%clk 0:01:51.3]} 30... e6
{[%clk 0:00:42.2]} 31. Bd3 {[%clk 0:01:48.3]} 31... Nc6 {[%clk 0:00:40.4]} 32.
Rc1 {[%clk 0:01:32.4]} 32... Nxd4 {[%clk 0:00:37.5]} 33. Nxd4 {[%clk 0:01:30.9]}
33... Bxd4 {[%clk 0:00:38.4]} 34. Bxc4 {[%clk 0:01:31.3]} 34... Rc8 {[%clk
0:00:34.6]} 35. Rb1 {[%clk 0:01:20.6]} 35... Rxc4 {[%clk 0:00:33.7]} 36. Rb7+
{[%clk 0:01:20.6]} 36... Kg6 {[%clk 0:00:33.5]} 37. a5 {[%clk 0:01:21.3]} 37...
Ra4 {[%clk 0:00:28.8]} 38. Bc7 {[%clk 0:01:20.3]} 38... Ra1+ {[%clk 0:00:26.1]}
39. Kh2 {[%clk 0:01:20.2]} 39... Bxf2 {[%clk 0:00:26.5]} 40. Be5 {[%clk
0:01:17.4]} 40... h5 {[%clk 0:00:24.6]} 41. Bxa1 {[%clk 0:01:16.8]} 41... h4
{[%clk 0:00:19.1]} 42. Re7 {[%clk 0:01:14.1]} 42... Bg3+ {[%clk 0:00:16]} 43.
Kg1 {[%clk 0:01:14.2]} 43... Kf5 {[%clk 0:00:16.4]} 44. Ra7 {[%clk 0:01:14.8]}
44... e5 {[%clk 0:00:12.8]} 45. Rxa6 {[%clk 0:01:14.6]} 45... d4 {[%clk
0:00:11.2]} 46. Ra8 {[%clk 0:01:14]} 46... e4 {[%clk 0:00:10.7]} 47. Bxd4 {[%clk
0:01:12.2]} 47... Bf4 {[%clk 0:00:08.5]} 48. a6 {[%clk 0:01:11.7]} 48... e3
{[%clk 0:00:08.4]} 49. a7 {[%clk 0:01:11.5]} 49... e2 {[%clk 0:00:07.7]} 50. Re8
{[%clk 0:01:10.7]} 1-0

[Event "*** Titled Tuesday Blitz"]
[Site "Chess.com"]
[Date "2020.10.20"]
[Round "2"]
[White "731291"]
[Black "GAusal"]
[Result "1-0"]
[WhiteElo "2631"]
[BlackElo "2018"]
[TimeControl "180+1"]
[EndTime "10:17:54 PDT"]
[Termination "731291 won on time"]

1. e4 {[%clk 0:03:00.9]} 1... c5 {[%clk 0:02:54.3]} 2. Nf3 {[%clk 0:02:58.5]}
2... d6 {[%clk 0:02:52.6]} 3. d4 {[%clk 0:02:57.3]} 3... cxd4 {[%clk 0:02:52.1]}
4. Nxd4 {[%clk 0:02:58.2]} 4... Nc6 {[%clk 0:02:49.5]} 5. Nc3 {[%clk 0:02:58.2]}
5... a6 {[%clk 0:02:47.1]} 6. g3 {[%clk 0:02:57.9]} 6... g6 {[%clk 0:02:46.3]}
7. Nde2 {[%clk 0:02:56.1]} 7... Bg7 {[%clk 0:02:46.4]} 8. Bg2 {[%clk 0:02:56.7]}
8... Nf6 {[%clk 0:02:46.1]} 9. h3 {[%clk 0:02:55.2]} 9... O-O {[%clk 0:02:46.4]}
10. O-O {[%clk 0:02:50.2]} 10... Be6 {[%clk 0:02:41.8]} 11. Nf4 {[%clk
0:02:49.1]} 11... Bc4 {[%clk 0:02:40.9]} 12. Re1 {[%clk 0:02:44.1]} 12... Ne5
{[%clk 0:02:36.8]} 13. Nfd5 {[%clk 0:02:35.3]} 13... Bxd5 {[%clk 0:02:25.5]} 14.
Nxd5 {[%clk 0:02:36.2]} 14... Nxd5 {[%clk 0:02:24.6]} 15. exd5 {[%clk
0:02:34.1]} 15... h5 {[%clk 0:02:11]} 16. Qe2 {[%clk 0:02:26.6]} 16... Re8
{[%clk 0:02:06.8]} 17. a4 {[%clk 0:02:21.5]} 17... Rc8 {[%clk 0:02:05.1]} 18.
Ra2 {[%clk 0:02:18.4]} 18... Nd7 {[%clk 0:02:01.6]} 19. c4 {[%clk 0:02:10.8]}
19... a5 {[%clk 0:01:55.3]} 20. b3 {[%clk 0:02:03.6]} 20... Nc5 {[%clk
0:01:52.9]} 21. Qd1 {[%clk 0:01:52.5]} 21... Qb6 {[%clk 0:01:51.2]} 22. Re3
{[%clk 0:01:51.7]} 22... Bh6 {[%clk 0:01:46.6]} 23. Rf3 {[%clk 0:01:44.9]} 23...
Bg7 {[%clk 0:01:39.3]} 24. Re2 {[%clk 0:01:39.3]} 24... Rc7 {[%clk 0:01:28.4]}
25. Qc2 {[%clk 0:01:29.7]} 25... Na6 {[%clk 0:01:24.9]} 26. Qe4 {[%clk
0:01:21.3]} 26... Nb4 {[%clk 0:01:20.6]} 27. Be3 {[%clk 0:01:13.7]} 27... Qa6
{[%clk 0:01:20.4]} 28. Bd4 {[%clk 0:01:01.2]} 28... Bxd4 {[%clk 0:01:13.7]} 29.
Qxd4 {[%clk 0:01:02]} 29... Qa8 {[%clk 0:00:55.9]} 30. g4 {[%clk 0:00:48.9]}
30... hxg4 {[%clk 0:00:44]} 31. hxg4 {[%clk 0:00:49.8]} 31... Qc8 {[%clk
0:00:36.3]} 32. Qf4 {[%clk 0:00:33]} 32... f6 {[%clk 0:00:32.6]} 33. Qh6 {[%clk
0:00:27.7]} 33... Qd7 {[%clk 0:00:02.2]} 34. Qxg6+ {[%clk 0:00:26]} 34... Kf8
{[%clk 0:00:01.3]} 35. Rh3 {[%clk 0:00:26.9]} 1-0

[Event "*** Titled Tuesday Blitz"]
[Site "Chess.com"]
[Date "2020.10.20"]
[Round "2"]
[White "Moultino06"]
[Black "Azerichess"]
[Result "0-1"]
[WhiteElo "2609"]
[BlackElo "2961"]
[TimeControl "180+1"]
[EndTime "10:17:55 PDT"]
[Termination "Azerichess won by resignation"]

1. e4 {[%clk 0:02:59.8]} 1... c6 {[%clk 0:02:58.1]} 2. Nc3 {[%clk 0:02:56.2]}
2... d5 {[%clk 0:02:58.3]} 3. Nf3 {[%clk 0:02:55.8]} 3... Bg4 {[%clk 0:02:58.1]}
4. h3 {[%clk 0:02:55]} 4... Bxf3 {[%clk 0:02:58.4]} 5. Qxf3 {[%clk 0:02:54]}
5... e6 {[%clk 0:02:59.1]} 6. d4 {[%clk 0:02:52.7]} 6... dxe4 {[%clk 0:02:58.6]}
7. Qe3 {[%clk 0:02:49.9]} 7... Bb4 {[%clk 0:02:52.1]} 8. Bd2 {[%clk 0:02:32.7]}
8... Bxc3 {[%clk 0:02:49.5]} 9. Bxc3 {[%clk 0:02:31.3]} 9... Nf6 {[%clk
0:02:50.4]} 10. g4 {[%clk 0:02:25.9]} 10... Nbd7 {[%clk 0:02:48.6]} 11. Bg2
{[%clk 0:02:22.2]} 11... h5 {[%clk 0:02:45.1]} 12. Bxe4 {[%clk 0:02:14.9]} 12...
Nxe4 {[%clk 0:02:35]} 13. Qxe4 {[%clk 0:02:14.1]} 13... Nf6 {[%clk 0:02:34.5]}
14. Qg2 {[%clk 0:02:12.2]} 14... Qd5 {[%clk 0:02:23.3]} 15. Qxd5 {[%clk
0:02:08.4]} 15... Nxd5 {[%clk 0:02:22.1]} 16. Ke2 {[%clk 0:02:02.4]} 16... f6
{[%clk 0:02:11.1]} 17. Bd2 {[%clk 0:01:59]} 17... Kf7 {[%clk 0:02:11.3]} 18. c4
{[%clk 0:01:57.5]} 18... Ne7 {[%clk 0:02:10.4]} 19. b3 {[%clk 0:01:56]} 19... g5
{[%clk 0:02:04.1]} 20. f4 {[%clk 0:01:49.2]} 20... gxf4 {[%clk 0:02:01.6]} 21.
Bxf4 {[%clk 0:01:48.6]} 21... Rag8 {[%clk 0:01:59.6]} 22. Bd6 {[%clk 0:01:38.2]}
22... Nc8 {[%clk 0:01:55.3]} 23. Bb8 {[%clk 0:01:25.1]} 23... hxg4 {[%clk
0:01:42.1]} 24. hxg4 {[%clk 0:01:26]} 24... Rxh1 {[%clk 0:01:41.9]} 25. Rxh1
{[%clk 0:01:26.9]} 25... Rxg4 {[%clk 0:01:41.9]} 26. Rh7+ {[%clk 0:01:23.3]}
26... Rg7 {[%clk 0:01:41.7]} 27. Rh8 {[%clk 0:01:23.4]} 27... Ne7 {[%clk
0:01:39]} 28. Bd6 {[%clk 0:01:14.2]} 28... Nf5 {[%clk 0:01:33]} 29. Bc5 {[%clk
0:00:38.4]} 29... b6 {[%clk 0:01:31.6]} 30. Ba3 {[%clk 0:00:35.5]} 30... Rg2+
{[%clk 0:01:28.2]} 31. Kd3 {[%clk 0:00:30.9]} 31... Rxa2 {[%clk 0:01:25.6]} 32.
Bc1 {[%clk 0:00:28.1]} 32... Ra1 {[%clk 0:01:17.5]} 33. Bb2 {[%clk 0:00:25.1]}
33... Rd1+ {[%clk 0:01:10.8]} 34. Kc2 {[%clk 0:00:23.8]} 34... Ne3+ {[%clk
0:01:03.1]} 35. Kc3 {[%clk 0:00:22.8]} 35... f5 {[%clk 0:01:01.5]} 36. Rh7+
{[%clk 0:00:21]} 36... Kg6 {[%clk 0:01:01]} 37. Rxa7 {[%clk 0:00:20.5]} 37... f4
{[%clk 0:01:01.3]} 38. Ra8 {[%clk 0:00:18.5]} 38... Kf5 {[%clk 0:00:55.8]} 39.
d5 {[%clk 0:00:15.7]} 39... cxd5 {[%clk 0:00:54.2]} 40. cxd5 {[%clk 0:00:13.9]}
40... Nxd5+ {[%clk 0:00:52.6]} 41. Kc4 {[%clk 0:00:12.7]} 41... f3 {[%clk
0:00:51.5]} 42. Bd4 {[%clk 0:00:08]} 42... Ke4 {[%clk 0:00:50.1]} 43. Bf2 {[%clk
0:00:07.5]} 43... Rd2 {[%clk 0:00:49.3]} 44. Bh4 {[%clk 0:00:04.3]} 44... Rc2+
{[%clk 0:00:49.1]} 45. Kb5 {[%clk 0:00:04]} 45... Nc7+ {[%clk 0:00:49.6]} 0-1

[Event "*** Titled Tuesday Blitz"]
[Site "Chess.com"]
[Date "2020.10.20"]
[Round "2"]
[White "Harsha_Bharathakoti"]
[Black "Mr_Sinigami"]
[Result "1-0"]
[WhiteElo "2779"]
[BlackElo "2500"]
[TimeControl "180+1"]
[EndTime "10:17:57 PDT"]
[Termination "Harsha_Bharathakoti won by resignation"]

1. c4 {[%clk 0:03:00.9]} 1... Nf6 {[%clk 0:02:59.2]} 2. Nc3 {[%clk 0:02:54.5]}
2... g6 {[%clk 0:02:59.1]} 3. e4 {[%clk 0:02:52.9]} 3... d6 {[%clk 0:02:58.9]}
4. d4 {[%clk 0:02:53.1]} 4... Bg7 {[%clk 0:02:59.1]} 5. Be2 {[%clk 0:02:53.8]}
5... O-O {[%clk 0:02:59]} 6. Bg5 {[%clk 0:02:54.5]} 6... h6 {[%clk 0:02:56.9]}
7. Be3 {[%clk 0:02:54.1]} 7... e5 {[%clk 0:02:57]} 8. d5 {[%clk 0:02:54.4]} 8...
a5 {[%clk 0:02:56.2]} 9. g4 {[%clk 0:02:54.4]} 9... Ne8 {[%clk 0:02:25.1]} 10.
Qd2 {[%clk 0:02:40]} 10... Kh7 {[%clk 0:02:24.8]} 11. h4 {[%clk 0:02:38.9]}
11... Na6 {[%clk 0:02:24]} 12. h5 {[%clk 0:02:35]} 12... g5 {[%clk 0:02:19.9]}
13. f3 {[%clk 0:02:32.6]} 13... Bf6 {[%clk 0:02:09.2]} 14. Nh3 {[%clk
0:02:31.3]} 14... Ng7 {[%clk 0:02:08.1]} 15. Nf2 {[%clk 0:02:30.5]} 15... Bd7
{[%clk 0:02:07.3]} 16. O-O {[%clk 0:02:24.3]} 16... Qe7 {[%clk 0:01:59.2]} 17.
Rab1 {[%clk 0:02:14.4]} 17... Rfc8 {[%clk 0:01:43.4]} 18. b3 {[%clk 0:02:08.6]}
18... c5 {[%clk 0:01:42.9]} 19. a3 {[%clk 0:02:00.5]} 19... Ne8 {[%clk
0:01:29.5]} 20. Nd3 {[%clk 0:02:00.6]} 20... Qf8 {[%clk 0:01:15.9]} 21. Nb2
{[%clk 0:01:44.6]} 21... Bd8 {[%clk 0:01:14.3]} 22. Nb5 {[%clk 0:01:41.2]} 22...
Qe7 {[%clk 0:01:07.7]} 23. Na4 {[%clk 0:01:39.7]} 23... b6 {[%clk 0:01:02.2]}
24. Rb2 {[%clk 0:01:36.8]} 24... Rab8 {[%clk 0:01:01.7]} 25. Rfb1 {[%clk
0:01:36.8]} 25... Nec7 {[%clk 0:01:00.4]} 26. Na7 {[%clk 0:01:33.2]} 26... Ne8
{[%clk 0:00:51.8]} 27. Nxc8 {[%clk 0:01:29.1]} 27... Rxc8 {[%clk 0:00:50.9]} 28.
Nc3 {[%clk 0:01:29.8]} 28... Nec7 {[%clk 0:00:37.6]} 29. Na2 {[%clk 0:01:27.5]}
29... Qe8 {[%clk 0:00:26]} 30. b4 {[%clk 0:01:27]} 30... axb4 {[%clk 0:00:25.9]}
31. axb4 {[%clk 0:01:27.9]} 31... cxb4 {[%clk 0:00:26.3]} 32. Nxb4 {[%clk
0:01:28.8]} 32... Nc5 {[%clk 0:00:25.3]} 33. Ra2 {[%clk 0:01:19.2]} 33... Rb8
{[%clk 0:00:17.1]} 34. Ra7 {[%clk 0:01:17.6]} 34... Kg7 {[%clk 0:00:17.1]} 35.
Nd3 {[%clk 0:01:15.6]} 35... N7a6 {[%clk 0:00:15.4]} 36. Nxc5 {[%clk 0:01:12.4]}
36... Nxc5 {[%clk 0:00:15.2]} 37. Bxc5 {[%clk 0:01:11.1]} 37... dxc5 {[%clk
0:00:15.4]} 38. Rba1 {[%clk 0:01:05.7]} 38... Bf6 {[%clk 0:00:14.6]} 39. Qb2
{[%clk 0:01:00.2]} 39... b5 {[%clk 0:00:13.3]} 40. cxb5 {[%clk 0:00:58.5]} 40...
Bxb5 {[%clk 0:00:13.3]} 41. Rb1 {[%clk 0:00:50.7]} 41... c4 {[%clk 0:00:13.1]}
42. Bxc4 {[%clk 0:00:47.5]} 42... Bd8 {[%clk 0:00:13.1]} 43. Bxb5 {[%clk
0:00:45.3]} 43... Bb6+ {[%clk 0:00:12.2]} 44. Kg2 {[%clk 0:00:45.9]} 1-0

[Event "*** Titled Tuesday Blitz"]
[Site "Chess.com"]
[Date "2020.10.20"]
[Round "2"]
[White "JuliaEfremova"]
[Black "As0nchess"]
[Result "0-1"]
[WhiteElo "2324"]
[BlackElo "2597"]
[TimeControl "180+1"]
[EndTime "10:17:57 PDT"]
[Termination "As0nchess won by resignation"]

1. d4 {[%clk 0:02:52.3]} 1... Nf6 {[%clk 0:03:00.1]} 2. Nf3 {[%clk 0:02:36.4]}
2... d5 {[%clk 0:02:59.9]} 3. Bf4 {[%clk 0:02:32]} 3... e6 {[%clk 0:02:52.8]} 4.
Nbd2 {[%clk 0:02:24.7]} 4... Bd6 {[%clk 0:02:52.8]} 5. Ne5 {[%clk 0:02:23.2]}
5... O-O {[%clk 0:02:51.7]} 6. e3 {[%clk 0:02:18]} 6... c5 {[%clk 0:02:50.9]} 7.
c3 {[%clk 0:02:17.1]} 7... Qc7 {[%clk 0:02:47.8]} 8. Bd3 {[%clk 0:02:10]} 8...
b6 {[%clk 0:02:44.7]} 9. O-O {[%clk 0:01:59.1]} 9... Ba6 {[%clk 0:02:38.9]} 10.
Bxa6 {[%clk 0:01:41]} 10... Nxa6 {[%clk 0:02:39.8]} 11. Qf3 {[%clk 0:01:39.8]}
11... Nd7 {[%clk 0:02:27.4]} 12. Qg3 {[%clk 0:01:28]} 12... f6 {[%clk
0:01:59.3]} 13. Nxd7 {[%clk 0:01:17.2]} 13... Bxf4 {[%clk 0:01:57.8]} 14. Qxf4
{[%clk 0:01:15.5]} 14... Qxd7 {[%clk 0:01:57.2]} 15. Nf3 {[%clk 0:01:11.6]}
15... Rae8 {[%clk 0:01:47.5]} 16. Qh4 {[%clk 0:01:07.4]} 16... Nb8 {[%clk
0:01:45.4]} 17. Rad1 {[%clk 0:00:55.4]} 17... Nc6 {[%clk 0:01:44]} 18. Rfe1
{[%clk 0:00:43.5]} 18... Ne7 {[%clk 0:01:31.9]} 19. e4 {[%clk 0:00:38.8]} 19...
dxe4 {[%clk 0:01:27.3]} 20. Qxe4 {[%clk 0:00:30.8]} 20... Nf5 {[%clk 0:01:03.5]}
21. dxc5 {[%clk 0:00:25.8]} 21... Qb5 {[%clk 0:01:02.4]} 22. cxb6 {[%clk
0:00:24.6]} 22... Qxb6 {[%clk 0:00:59.1]} 23. b3 {[%clk 0:00:20.5]} 23... Kh8
{[%clk 0:00:58]} 24. c4 {[%clk 0:00:20.8]} 24... Qa5 {[%clk 0:00:55.8]} 25. Re2
{[%clk 0:00:18.4]} 25... h6 {[%clk 0:00:52.7]} 26. Red2 {[%clk 0:00:17.8]} 26...
Qb6 {[%clk 0:00:38.7]} 27. Nh4 {[%clk 0:00:13.7]} 27... Nxh4 {[%clk 0:00:38]}
28. Qxh4 {[%clk 0:00:14.6]} 28... e5 {[%clk 0:00:38.5]} 29. Qg4 {[%clk
0:00:13.8]} 29... Re7 {[%clk 0:00:34.8]} 30. h4 {[%clk 0:00:12.3]} 30... Qa5
{[%clk 0:00:34.6]} 31. h5 {[%clk 0:00:11.9]} 31... f5 {[%clk 0:00:33.2]} 32. Qg6
{[%clk 0:00:11.1]} 32... e4 {[%clk 0:00:30.5]} 33. Rd7 {[%clk 0:00:10.2]} 33...
Rxd7 {[%clk 0:00:27.9]} 34. Rxd7 {[%clk 0:00:10.5]} 34... Rg8 {[%clk 0:00:28.1]}
35. Qxf5 {[%clk 0:00:05.2]} 35... Qxf5 {[%clk 0:00:27.8]} 0-1

[Event "*** Titled Tuesday Blitz"]
[Site "Chess.com"]
[Date "2020.10.20"]
[Round "2"]
[White "jonaszmb"]
[Black "GigaQuparadze"]
[Result "0-1"]
[WhiteElo "2407"]
[BlackElo "2870"]
[TimeControl "180+1"]
[EndTime "10:17:58 PDT"]
[Termination "GigaQuparadze won on time"]

1. g3 {[%clk 0:03:00.9]} 1... c5 {[%clk 0:02:59.6]} 2. c4 {[%clk 0:02:59]} 2...
Nc6 {[%clk 0:02:59.9]} 3. Bg2 {[%clk 0:02:59.3]} 3... g6 {[%clk 0:03:00.2]} 4.
Nc3 {[%clk 0:02:59.3]} 4... Bg7 {[%clk 0:03:00.4]} 5. d3 {[%clk 0:02:57.4]} 5...
d6 {[%clk 0:03:00.7]} 6. Nf3 {[%clk 0:02:56.1]} 6... Bg4 {[%clk 0:02:59.8]} 7.
O-O {[%clk 0:02:56]} 7... Qd7 {[%clk 0:02:59.6]} 8. Re1 {[%clk 0:02:52.1]} 8...
Bh3 {[%clk 0:02:59.1]} 9. Bh1 {[%clk 0:02:52.5]} 9... h6 {[%clk 0:02:58.4]} 10.
Rb1 {[%clk 0:02:47.8]} 10... Nf6 {[%clk 0:02:57.2]} 11. a3 {[%clk 0:02:44.1]}
11... Ng4 {[%clk 0:02:57.3]} 12. e3 {[%clk 0:02:27.7]} 12... Nge5 {[%clk
0:02:55.7]} 13. Nxe5 {[%clk 0:02:14.6]} 13... Nxe5 {[%clk 0:02:56.6]} 14. Qe2
{[%clk 0:01:45.8]} 14... Bg4 {[%clk 0:02:54.9]} 15. f3 {[%clk 0:01:45.1]} 15...
Bf5 {[%clk 0:02:52.5]} 16. e4 {[%clk 0:01:32.6]} 16... Be6 {[%clk 0:02:51.2]}
17. Nd5 {[%clk 0:01:24.9]} 17... Nc6 {[%clk 0:02:50.8]} 18. b4 {[%clk
0:01:19.4]} 18... Nd4 {[%clk 0:02:50.6]} 19. Qf2 {[%clk 0:01:06.2]} 19... b6
{[%clk 0:02:50.3]} 20. Bb2 {[%clk 0:00:55.4]} 20... O-O {[%clk 0:02:48.9]} 21.
Bg2 {[%clk 0:00:38]} 21... Rae8 {[%clk 0:02:46]} 22. Kh1 {[%clk 0:00:38.1]}
22... Bxd5 {[%clk 0:02:42.4]} 23. exd5 {[%clk 0:00:34.6]} 23... e5 {[%clk
0:02:41.5]} 24. dxe6 {[%clk 0:00:32.4]} 24... fxe6 {[%clk 0:02:38.8]} 25. f4
{[%clk 0:00:29.7]} 25... e5 {[%clk 0:02:38.6]} 26. Bxd4 {[%clk 0:00:24.9]} 26...
cxd4 {[%clk 0:02:36.6]} 27. c5 {[%clk 0:00:18.9]} 27... dxc5 {[%clk 0:02:32.9]}
28. bxc5 {[%clk 0:00:19.8]} 28... exf4 {[%clk 0:02:29.4]} 29. Rxe8 {[%clk
0:00:19.4]} 29... Qxe8 {[%clk 0:02:28.9]} 30. gxf4 {[%clk 0:00:15.3]} 30... bxc5
{[%clk 0:02:28.1]} 31. Be4 {[%clk 0:00:14.9]} 31... g5 {[%clk 0:02:25.6]} 32.
Qa2+ {[%clk 0:00:13]} 32... Kh8 {[%clk 0:02:25.4]} 33. fxg5 {[%clk 0:00:09.1]}
33... hxg5 {[%clk 0:02:24.4]} 34. Qg2 {[%clk 0:00:09]} 34... Qh5 {[%clk
0:02:23]} 35. Rf1 {[%clk 0:00:08.2]} 35... Rf6 {[%clk 0:02:09.1]} 36. Rxf6
{[%clk 0:00:07.8]} 36... Bxf6 {[%clk 0:02:10]} 37. Qf1 {[%clk 0:00:07.6]} 37...
Kg7 {[%clk 0:02:08.8]} 38. Qf5 {[%clk 0:00:07.8]} 38... Qd1+ {[%clk 0:01:51.1]}
39. Kg2 {[%clk 0:00:08]} 39... Qe2+ {[%clk 0:01:50.6]} 40. Kg1 {[%clk
0:00:08.5]} 40... Qe3+ {[%clk 0:01:50.1]} 41. Kh1 {[%clk 0:00:08.6]} 41... Qf4
{[%clk 0:01:48.6]} 42. Qd7+ {[%clk 0:00:07.5]} 42... Kf8 {[%clk 0:01:47.7]} 43.
Qc8+ {[%clk 0:00:07.8]} 43... Kf7 {[%clk 0:01:47.5]} 44. Qd7+ {[%clk 0:00:07.2]}
44... Be7 {[%clk 0:01:46.5]} 45. Qd5+ {[%clk 0:00:06.8]} 45... Kf6 {[%clk
0:01:41.9]} 46. Qc6+ {[%clk 0:00:06.2]} 46... Bd6 {[%clk 0:01:42]} 47. Kg2
{[%clk 0:00:03.2]} 47... Qxh2+ {[%clk 0:01:40.8]} 48. Kf1 {[%clk 0:00:03.5]}
48... Qf4+ {[%clk 0:01:40.7]} 49. Ke2 {[%clk 0:00:03.1]} 49... g4 {[%clk
0:01:38.8]} 50. Qd7 {[%clk 0:00:02.6]} 50... Kg5 {[%clk 0:01:34.6]} 51. Qd8+
{[%clk 0:00:02.3]} 51... Qf6 {[%clk 0:01:33.1]} 52. Qg8+ {[%clk 0:00:02.2]}
52... Kf4 {[%clk 0:01:32.8]} 53. Qd5 {[%clk 0:00:01.5]} 53... Kg3 {[%clk
0:01:18.4]} 54. Qh5 {[%clk 0:00:01.4]} 54... Qf2+ {[%clk 0:01:17]} 55. Kd1
{[%clk 0:00:01.9]} 55... Bf4 {[%clk 0:01:16.8]} 0-1

[Event "*** Titled Tuesday Blitz"]
[Site "Chess.com"]
[Date "2020.10.20"]
[Round "2"]
[White "JiiHart"]
[Black "Rakesh"]
[Result "0-1"]
[WhiteElo "2063"]
[BlackElo "2460"]
[TimeControl "180+1"]
[EndTime "10:18:03 PDT"]
[Termination "Rakesh won on time"]

1. e4 {[%clk 0:03:00.9]} 1... c5 {[%clk 0:03:00.9]} 2. Nf3 {[%clk 0:03:00.6]}
2... e6 {[%clk 0:03:01.3]} 3. d4 {[%clk 0:03:00.8]} 3... cxd4 {[%clk 0:03:02.2]}
4. Nxd4 {[%clk 0:03:01.4]} 4... a6 {[%clk 0:03:02.8]} 5. Nc3 {[%clk 0:03:01.4]}
5... Qc7 {[%clk 0:03:03.4]} 6. g3 {[%clk 0:03:01.5]} 6... Bb4 {[%clk 0:03:02.5]}
7. Ne2 {[%clk 0:02:56]} 7... Be7 {[%clk 0:03:02.9]} 8. Bg2 {[%clk 0:02:56]} 8...
Nc6 {[%clk 0:03:03]} 9. O-O {[%clk 0:02:55.8]} 9... Nf6 {[%clk 0:03:03.9]} 10.
h3 {[%clk 0:02:55.1]} 10... d6 {[%clk 0:03:04.8]} 11. Be3 {[%clk 0:02:54.9]}
11... O-O {[%clk 0:03:05.7]} 12. f4 {[%clk 0:02:44.4]} 12... b5 {[%clk
0:03:02.1]} 13. a3 {[%clk 0:02:33.3]} 13... Bb7 {[%clk 0:03:01.9]} 14. g4 {[%clk
0:02:32.1]} 14... Nd7 {[%clk 0:03:00.2]} 15. Qd2 {[%clk 0:02:22.2]} 15... Na5
{[%clk 0:02:58.5]} 16. b3 {[%clk 0:02:10.8]} 16... Rac8 {[%clk 0:02:57.6]} 17.
Rfd1 {[%clk 0:02:05]} 17... Bf6 {[%clk 0:02:55.2]} 18. Bd4 {[%clk 0:02:03.5]}
18... Be7 {[%clk 0:02:36.8]} 19. Rab1 {[%clk 0:01:40.6]} 19... Rfd8 {[%clk
0:02:34.1]} 20. Qe3 {[%clk 0:01:34]} 20... Nc6 {[%clk 0:02:26.4]} 21. g5 {[%clk
0:01:17.7]} 21... Nxd4 {[%clk 0:02:25.9]} 22. Rxd4 {[%clk 0:01:14.3]} 22... Nb6
{[%clk 0:02:21.6]} 23. Rbd1 {[%clk 0:01:04.8]} 23... d5 {[%clk 0:02:10.6]} 24.
b4 {[%clk 0:01:03.9]} 24... dxe4 {[%clk 0:02:08.5]} 25. Bxe4 {[%clk 0:01:01.6]}
25... Rxd4 {[%clk 0:02:07.2]} 26. Rxd4 {[%clk 0:00:52.6]} 26... Nc4 {[%clk
0:02:01.4]} 27. Qc1 {[%clk 0:00:41.3]} 27... Bxe4 {[%clk 0:01:59.7]} 28. Nxe4
{[%clk 0:00:35.4]} 28... Nb6 {[%clk 0:01:58.5]} 29. c3 {[%clk 0:00:32.9]} 29...
Nd5 {[%clk 0:01:56.1]} 30. Qd2 {[%clk 0:00:30.8]} 30... h6 {[%clk 0:01:53.1]}
31. h4 {[%clk 0:00:30.5]} 31... f5 {[%clk 0:01:43.5]} 32. gxf6 {[%clk
0:00:29.1]} 32... Nxf6 {[%clk 0:01:36.4]} 33. Nxf6+ {[%clk 0:00:28.3]} 33...
Bxf6 {[%clk 0:01:37.3]} 34. Rd7 {[%clk 0:00:22.1]} 34... Qc6 {[%clk 0:01:36.5]}
35. Qd3 {[%clk 0:00:15.4]} 35... Bxh4 {[%clk 0:01:28.4]} 36. Rd6 {[%clk
0:00:10.1]} 36... Qc4 {[%clk 0:01:23.3]} 37. Qxc4 {[%clk 0:00:09.3]} 37... Rxc4
{[%clk 0:01:24.2]} 38. Rxe6 {[%clk 0:00:09.3]} 38... Bf6 {[%clk 0:01:23.7]} 39.
Kg2 {[%clk 0:00:08.2]} 39... Bxc3 {[%clk 0:01:23.5]} 40. Nxc3 {[%clk 0:00:08.5]}
40... Rxc3 {[%clk 0:01:24.4]} 41. Rxa6 {[%clk 0:00:08.9]} 41... Kf7 {[%clk
0:01:23.6]} 42. Ra5 {[%clk 0:00:09.2]} 42... Kf6 {[%clk 0:01:23.2]} 43. Rxb5
{[%clk 0:00:09.1]} 43... Rxa3 {[%clk 0:01:23.7]} 44. Kf2 {[%clk 0:00:09]} 44...
g6 {[%clk 0:01:23.4]} 45. Ke2 {[%clk 0:00:08.6]} 45... h5 {[%clk 0:01:23.2]} 46.
Rc5 {[%clk 0:00:07.6]} 46... Rb3 {[%clk 0:01:22.7]} 47. Rc4 {[%clk 0:00:07.4]}
47... Kf5 {[%clk 0:01:22.5]} 48. Kd2 {[%clk 0:00:07.2]} 48... h4 {[%clk
0:01:22.6]} 49. Ke2 {[%clk 0:00:07]} 49... Kg4 {[%clk 0:01:22.2]} 50. Kf2 {[%clk
0:00:06.8]} 50... Rb2+ {[%clk 0:01:22.1]} 51. Kg1 {[%clk 0:00:06.5]} 51... h3
{[%clk 0:01:21.2]} 52. Rc3 {[%clk 0:00:04.6]} 52... Rxb4 {[%clk 0:01:20]} 53.
Kh2 {[%clk 0:00:04.9]} 53... Rb2+ {[%clk 0:01:20.4]} 54. Kg1 {[%clk 0:00:05.1]}
54... Re2 {[%clk 0:01:20]} 55. Rd3 {[%clk 0:00:02.8]} 55... Rg2+ {[%clk
0:01:18.2]} 56. Kh1 {[%clk 0:00:01.7]} 56... Rg3 {[%clk 0:01:18.8]} 57. Kh2
{[%clk 0:00:01.8]} 57... Rxd3 {[%clk 0:01:16.2]} 0-1